bitfinex-derivatives/quotes_BTCF0:USTF0_20260131
["timestamp","ask_amount","ask_price","bid_price","bid_amount"]
[1769885904614,0.29355933,78143.0,78103.0,0.01282]
[1769885904814,0.29355933,78141.0,78103.0,0.01282]
[1769885905023,0.09236,78145.0,78098.0,0.28636313]
[1769885905219,0.12802212,78140.0,78098.0,0.35047013]
[1769885905421,0.12802212,78140.0,78120.0,0.012818]
[1769885905616,0.09236,78145.0,78120.0,0.012818]
[1769885905811,0.09236,78145.0,78098.0,0.35047013]
[1769885905812,0.09236,78145.0,78111.0,0.012819]
[1769885906212,0.09236,78145.0,78116.0,0.012818]
[1769885906411,0.29355933,78143.0,78098.0,0.28636313]
[1769885906617,0.29355933,78137.0,78098.0,0.012821]
[1769885907110,0.09236,78145.0,78097.0,0.09236]
[1769885907111,0.29355933,78132.0,78097.0,0.09236]
[1769885907317,0.29355933,78131.0,78097.0,0.09236]
[1769885907517,0.30637533,78131.0,78097.0,0.09236]
[1769885907717,0.29355933,78129.0,78093.0,0.012822]
[1769885907923,0.11724222,78128.0,78093.0,0.012822]
[1769885908222,0.11724222,78127.0,78086.0,0.28636313]
[1769885908418,0.1280172,78127.0,78098.0,0.012821]
[1769885908618,0.29355933,78130.0,78098.0,0.012821]
[1769885908818,0.12802376,78126.0,78092.0,0.012822]
[1769885909019,0.20980079,78125.0,78092.0,0.012822]
[1769885909322,0.11744079,78124.0,78092.0,0.012822]
[1769885909525,0.11744079,78124.0,78086.0,0.28636313]
[1769885909821,0.001,78131.0,78086.0,0.28636313]
[1769885910019,0.12802703,78123.0,78086.0,0.28736313]
[1769885910322,0.29355933,78138.0,78108.0,0.01282]
[1769885910520,0.12802703,78122.0,78108.0,0.01282]
[1769885910723,0.22955933,78138.0,78108.0,0.01282]
[1769885910920,0.12803359,78121.0,78108.0,0.01282]
[1769885911126,0.12803359,78121.0,78102.0,0.01282]
[1769885911329,0.105176,78130.0,78090.0,0.012822]
[1769885911622,0.12802212,78120.0,78095.0,0.012822]
[1769885911823,0.09236,78130.0,78095.0,0.012822]
[1769885912017,0.12802212,78128.0,78095.0,0.012822]
[1769885912219,0.11931545,78127.0,78095.0,0.012822]
[1769885912423,0.11931545,78126.0,78095.0,0.012822]
[1769885912623,0.11931545,78125.0,78095.0,0.012822]
[1769885912814,0.11931545,78124.0,78100.0,0.012821]
[1769885913015,0.29355933,78122.0,78082.0,0.00012742]
[1769885913221,0.29355933,78120.0,78090.0,0.001]
[1769885913422,0.29355933,78110.0,78051.0,0.28636313]
[1769885913622,0.012821,78102.0,78062.0,0.012827]
[1769885913819,0.21163545,78109.0,78056.0,0.012828]
[1769885913820,0.29355933,78094.0,78056.0,0.012828]
[1769885914014,0.29355933,78092.0,78056.0,0.012828]
[1769885914219,0.29355933,78090.0,78061.0,0.012828]
[1769885914419,0.1194698,78089.0,78061.0,0.012828]
[1769885914619,0.29355933,78087.0,78038.0,0.28636313]
[1769885914823,0.09232,78091.0,78037.0,0.09232]
[1769885914824,0.29355933,78085.0,78037.0,0.09232]
[1769885915122,0.29355933,78073.0,78025.0,0.012833]
[1769885915426,0.29355933,78066.0,78024.0,0.00015994]
[1769885915619,0.29355933,78064.0,78024.0,0.00015994]
[1769885915820,0.29355933,78062.0,78024.0,0.00015994]
[1769885916014,0.29355933,78060.0,78024.0,0.00015994]
[1769885916216,0.29355933,78058.0,78024.0,0.00015994]
[1769885916417,0.11931545,78057.0,78025.0,0.012834]
[1769885916615,0.11946454,78056.0,78025.0,0.012834]
[1769885916822,0.11931545,78055.0,78032.0,0.012832]
[1769885917122,0.00014909,78056.0,78032.0,0.012832]
[1769885917331,0.12813613,78054.0,78032.0,0.012832]
[1769885917523,0.08613613,78054.0,78032.0,0.012832]
[1769885917724,0.01431516,78061.0,78024.0,0.01299394]
[1769885917725,0.21679806,78053.0,78024.0,0.01299394]
[1769885918027,0.12428371,78052.0,78024.0,0.01299394]
[1769885918325,0.12813284,78051.0,78024.0,0.01299394]
[1769885918518,0.12813284,78051.0,78024.0,0.00015994]
[1769885918721,0.27951435,78049.0,78024.0,0.00015994]
[1769885918921,0.27951435,78047.0,78008.0,0.012836]
[1769885919125,0.27951435,78045.0,78008.0,0.012836]
[1769885919424,0.27951435,78043.0,78000.0,0.012838]
[1769885919621,0.27951435,78041.0,77991.0,0.012839]
[1769885919824,0.27951435,78039.0,77991.0,0.012839]
[1769885920127,0.27951435,78037.0,77991.0,0.012839]
[1769885920327,0.27951435,78035.0,77998.0,0.012838]
[1769885920545,0.12487632,78034.0,77998.0,0.012838]
[1769885920828,0.21735562,78033.0,77998.0,0.012838]
[1769885921027,0.3967285,78032.0,77991.0,0.012839]
[1769885921222,0.00015097,78031.0,77988.0,0.28765022]
[1769885921419,0.12833309,78031.0,77993.0,0.28765022]
[1769885921828,0.00015097,78031.0,77993.0,0.28765022]
[1769885922024,0.00015097,78031.0,77974.0,0.064212]
[1769885922025,0.27185218,78029.0,77991.0,0.012839]
[1769885922227,0.0001463,78028.0,77991.0,0.012839]
[1769885922533,0.27199848,78028.0,77991.0,0.012839]
[1769885922723,0.12818869,78027.0,77991.0,0.012839]
[1769885923226,0.12818869,78027.0,77987.0,0.09236]
[1769885923227,0.27185218,78025.0,77987.0,0.09236]
[1769885923423,0.012835,78014.0,77970.0,0.012842]
[1769885923634,0.27185218,78012.0,77970.0,0.012842]
[1769885923820,0.27185218,78010.0,77970.0,0.012842]
[1769885924023,0.27185218,78008.0,77976.0,0.012841]
[1769885924222,0.43032,78011.0,77976.0,0.012841]
[1769885924223,0.27194509,78007.0,77976.0,0.012841]
[1769885924425,0.00010498,78006.0,77976.0,0.012841]
[1769885925029,0.12821827,78005.0,77976.0,0.012841]
[1769885925237,0.00013851,78004.0,77976.0,0.012841]
[1769885925527,0.27185218,78007.0,77976.0,0.012841]
[1769885925729,0.27185218,78019.0,77983.0,0.01284]
[1769885925927,7.4e-07,78003.0,77991.0,0.30048922]
[1769885926129,0.338,78028.0,77996.0,0.012838]
[1769885926529,0.27185218,78026.0,77996.0,0.012838]
[1769885926732,0.27185218,78026.0,77984.0,0.01284]
[1769885926926,0.27185218,78022.0,77978.0,0.012841]
[1769885927236,0.27185218,78018.0,77978.0,0.012841]
[1769885927437,0.27185218,78016.0,77978.0,0.012841]
[1769885927631,0.27185218,78014.0,77978.0,0.012841]
[1769885927827,0.27185218,78012.0,77978.0,0.012841]
[1769885928036,0.27185218,78012.0,77956.0,0.00016114]
[1769885928037,0.27185218,78010.0,77956.0,0.00016114]
[1769885928236,0.0924,78015.0,77956.0,0.00016114]
[1769885928237,0.27185218,77996.0,77956.0,0.00016114]
[1769885928538,0.27185218,77991.0,77956.0,0.00016114]
[1769885928731,0.27185218,77989.0,77957.0,0.012844]
[1769885928936,0.27185218,78001.0,77963.0,0.012843]
[1769885929136,0.27185218,77999.0,77963.0,0.012843]
[1769885929341,0.12823307,77988.0,77963.0,0.012843]
[1769885929636,0.0924,77997.0,77968.0,0.012842]
[1769885929937,0.12823636,77997.0,77979.0,0.012841]
[1769885930138,0.12823636,77997.0,77972.0,0.012842]
[1769885930338,0.27285218,78001.0,77972.0,0.012842]
[1769885930536,0.12823636,77996.0,77972.0,0.012842]
[1769885930832,0.27285218,78001.0,77978.0,0.012841]
[1769885931031,0.1282306,77995.0,77978.0,0.012841]
[1769885931436,0.0924,78012.0,77983.0,0.01284]
[1769885931828,0.12822732,78000.0,77983.0,0.01284]
[1769885932140,0.27185218,78011.0,77970.0,0.012842]
[1769885932342,0.27185218,78011.0,77968.0,0.001]
[1769885932343,0.12822732,77999.0,77967.0,0.28765022]
[1769885932641,0.20785218,78011.0,77967.0,0.28765022]
[1769885932835,0.12822074,78010.0,77967.0,0.28765022]
[1769885933037,0.12822074,78010.0,77975.0,0.012841]
[1769885933237,0.0924,78012.0,77975.0,0.012841]
[1769885933440,0.12822074,78009.0,77975.0,0.012841]
[1769885933638,0.0924,78012.0,77975.0,0.012841]
[1769885933838,0.12821745,78011.0,77975.0,0.012841]
[1769885934140,0.012836,78011.0,77969.0,0.012842]
[1769885934639,0.012836,78008.0,77969.0,0.012842]
[1769885934837,0.27185218,78007.0,77969.0,0.012842]
[1769885935138,0.27185218,78002.0,77963.0,0.012844]
[1769885935737,0.12823389,78001.0,77963.0,0.012844]
[1769885935937,0.27185218,78000.0,77963.0,0.012844]
[1769885936139,0.12823389,78001.0,77974.0,0.012842]
[1769885936441,0.27185218,78018.0,77983.0,0.01284]
[1769885936640,0.12823389,78000.0,77983.0,0.01284]
[1769885936841,0.27185218,78018.0,77983.0,0.01284]
[1769885937041,0.12822567,77999.0,77983.0,0.01284]
[1769885937239,0.27185218,78018.0,77983.0,0.01284]
[1769885937734,0.12821992,77998.0,77983.0,0.01284]
[1769885937937,0.27185218,78018.0,77983.0,0.01284]
[1769885938243,0.12821992,77997.0,77983.0,0.01284]
[1769885938441,0.27185218,78034.0,77984.0,0.28765022]
[1769885938641,0.30851208,78082.0,77974.0,0.064212]
[1769885938642,0.27185218,78032.0,77996.0,0.012838]
[1769885938940,0.1282043,78017.0,77996.0,0.012838]
[1769885939141,0.27185218,78020.0,77990.0,0.012839]
[1769885939339,0.1282043,78016.0,77990.0,0.012839]
[1769885939534,0.27185218,78016.0,77990.0,0.012839]
[1769885939934,0.22985218,78016.0,77990.0,0.012839]
[1769885940146,0.22985218,78016.0,77995.0,0.012838]
[1769885940444,0.22985218,78016.0,77985.0,0.09244]
[1769885940445,0.001,78034.0,77991.0,0.28765022]
[1769885940642,0.001,78034.0,78015.0,0.012835]
[1769885940847,0.12819608,78033.0,78015.0,0.012835]
[1769885941441,0.12819608,78033.0,77995.0,0.064194]
[1769885941442,0.09244,78044.0,78021.0,0.012834]
[1769885941642,0.09244,78055.0,78014.0,0.28765022]
[1769885941845,0.24921805,78105.0,78047.0,0.01283]
[1769885942147,0.12816569,78054.0,78041.0,0.012831]
[1769885942342,0.27185218,78070.0,78041.0,0.012831]
[1769885942545,0.128317,78069.0,78040.0,0.012831]
[1769885942741,0.128317,78068.0,78043.0,0.012831]
[1769885943051,0.128317,78067.0,78043.0,0.012831]
[1769885943243,0.128317,78066.0,78043.0,0.012831]
[1769885943440,0.27185218,78064.0,78036.0,0.012832]
[1769885943749,0.27185218,78062.0,78031.0,0.09244]
[1769885943938,0.27185218,78060.0,78022.0,0.012834]
[1769885944139,0.27185218,78058.0,78027.0,0.012833]
[1769885944349,0.128317,78057.0,78027.0,0.012833]
[1769885944647,0.128317,78056.0,78032.0,0.012832]
[1769885944842,0.128317,78055.0,78032.0,0.012832]
[1769885945041,0.128317,78054.0,78032.0,0.012832]
[1769885945240,0.128317,78053.0,78032.0,0.012832]
[1769885945445,0.128317,78052.0,78027.0,0.001]
[1769885945943,0.25645148,78051.0,78027.0,0.001]
[1769885946145,0.128317,78050.0,78025.0,0.012834]
[1769885946546,0.25645148,78049.0,78025.0,0.012834]
[1769885946746,0.128317,78048.0,78025.0,0.012834]
[1769885947047,0.29155409,78069.0,78044.0,0.01283]
[1769885947248,0.24975612,78077.0,78033.0,0.29313473]
[1769885947451,0.29155409,78082.0,78054.0,0.012829]
[1769885947843,3.2e-07,78069.0,78059.0,0.012828]
[1769885948044,0.01556306,78082.0,78059.0,0.012828]
[1769885948242,0.09244,78084.0,78050.0,0.26778196]
[1769885948243,3.2e-07,78068.0,78050.0,0.26778196]
[1769885948442,0.29155409,78094.0,78052.0,0.29313473]
[1769885948643,0.29155409,78094.0,78051.0,0.09244]
[1769885948841,0.12810822,78083.0,78058.0,0.012828]
[1769885949044,0.012823,78091.0,78052.0,0.012829]
[1769885949244,0.29155409,78090.0,78052.0,0.012829]
[1769885949447,0.29155409,78088.0,78052.0,0.013829]
[1769885949952,0.29155409,78086.0,78052.0,0.013829]
[1769885950450,0.29155409,78078.0,78026.0,0.0924]
[1769885950641,0.29155409,78073.0,78026.0,0.0924]
[1769885950845,0.29155409,78071.0,78026.0,0.0924]
[1769885951647,0.29155409,78067.0,78026.0,0.105233]
[1769885952253,0.41967955,78066.0,78031.0,0.012832]
[1769885952552,0.0924,78072.0,78031.0,0.29313473]
[1769885952748,0.0924,78072.0,78050.0,0.012829]
[1769885953354,0.12812546,78071.0,78050.0,0.012829]
[1769885953748,0.001,78073.0,78050.0,0.012829]
[1769885953949,0.12810494,78072.0,78050.0,0.012829]
[1769885954155,0.29155409,78071.0,78034.0,0.012832]
[1769885954451,0.29155409,78069.0,78034.0,0.012832]
[1769885954857,0.012826,78068.0,78028.0,0.012833]
[1769885955045,0.12811889,78068.0,78032.0,0.29313473]
[1769885955251,0.012824,78081.0,78038.0,0.012831]
[1769885955554,0.12811889,78067.0,78032.0,0.012832]
[1769885955750,0.0924,78066.0,78032.0,0.012832]
[1769885956752,0.29155409,78064.0,78026.0,0.0924]
[1769885956950,0.29155409,78058.0,78021.0,0.012834]
[1769885957147,0.29155409,78058.0,78026.0,0.012834]
[1769885957342,0.46616463,78057.0,78026.0,0.012834]
[1769885957543,0.12812463,78057.0,78026.0,0.012834]
[1769885957748,0.0924,78056.0,78026.0,0.012834]
[1769885958043,0.012827,78066.0,78026.0,0.012834]
[1769885958248,0.29155409,78068.0,78021.0,0.0924]
[1769885958457,0.12813613,78055.0,78036.0,0.012832]
[1769885958648,0.29155409,78068.0,78036.0,0.012832]
[1769885958850,0.12813202,78067.0,78036.0,0.012832]
[1769885959155,0.24900517,78073.0,78036.0,0.012832]
[1769885959156,0.29155409,78065.0,78036.0,0.012832]
[1769885959364,0.13204505,78064.0,78041.0,0.012831]
[1769885959956,0.12812217,78063.0,78041.0,0.012831]
[1769885960156,0.12812217,78063.0,78022.0,0.0924]
[1769885960157,0.13204505,78062.0,78046.0,0.01283]
[1769885960553,0.24900517,78088.0,78069.0,0.012827]
[1769885960755,0.29155409,78108.0,78069.0,0.012827]
[1769885960955,0.12811643,78084.0,78063.0,0.012828]
[1769885961159,0.29155409,78095.0,78063.0,0.012828]
[1769885961459,0.12811643,78083.0,78063.0,0.012828]
[1769885961655,0.29155409,78095.0,78063.0,0.012828]
[1769885961855,0.29155409,78095.0,78050.0,0.0924]
[1769885962063,0.29155409,78081.0,78050.0,0.10523]
[1769885962560,0.12807541,78080.0,78055.0,0.012829]
[1769885963062,0.33804,78087.0,78055.0,0.012829]
[1769885963266,0.12809755,78086.0,78055.0,0.012829]
[1769885963464,0.33804,78087.0,78055.0,0.012829]
[1769885963666,0.12808935,78085.0,78060.0,0.012828]
[1769885963960,0.01582054,78097.0,78061.0,0.29313473]
[1769885964263,0.12808935,78095.0,78061.0,0.29313473]
[1769885964465,0.38395409,78098.0,78061.0,0.29313473]
[1769885964665,0.29155409,78097.0,78061.0,0.29313473]
[1769885964865,0.29155409,78096.0,78050.0,0.0924]
[1769885965061,0.29155409,78096.0,78063.0,0.012827]
[1769885965266,0.12807705,78095.0,78063.0,0.012827]
[1769885965572,0.41963114,78095.0,78068.0,0.012827]
[1769885965772,0.29155409,78094.0,78068.0,0.012827]
[1769885966279,0.12807541,78093.0,78068.0,0.012827]
[1769885966874,0.12807541,78093.0,78053.0,0.38553473]
[1769885967175,0.12807541,78093.0,78054.0,0.29313473]
[1769885967977,0.12807541,78093.0,78072.0,0.012827]
[1769885968576,4.1e-07,78093.0,78073.0,0.29313473]
[1769885968778,0.29155409,78104.0,78063.0,0.29313473]
[1769885969080,0.41962375,78092.0,78073.0,0.012826]
[1769885969377,0.41962375,78092.0,78053.0,0.001]
[1769885969378,0.12806966,78091.0,78078.0,0.012826]
[1769885969575,0.23455475,78103.0,78064.0,0.29313473]
[1769885969770,0.23455475,78103.0,78081.0,0.012825]
[1769885969977,6.6e-07,78090.0,78081.0,0.012825]
[1769885970178,0.192123,78099.0,78081.0,0.012825]
[1769885970677,0.192123,78098.0,78064.0,0.29313473]
[1769885970878,0.12805736,78098.0,78077.0,0.012826]
[1769885971074,0.12805736,78098.0,78029.0,0.29313473]
[1769885971281,0.12805736,78098.0,77990.0,0.37810394]
[1769885971282,0.192123,78082.0,78050.0,0.01283]
[1769885971483,0.09236,78081.0,78056.0,0.012829]
[1769885971678,0.29155409,78079.0,78056.0,0.012829]
[1769885972384,0.12809673,78078.0,78056.0,0.012829]
[1769885972584,0.13963568,78077.0,78056.0,0.012829]
[1769885972777,0.13963568,78076.0,78056.0,0.012829]
[1769885972979,0.38391409,78079.0,78056.0,0.012829]
[1769885972980,0.13963568,78075.0,78056.0,0.012829]
[1769885973181,0.13963568,78074.0,78056.0,0.012829]
[1769885973578,0.13963568,78073.0,78056.0,0.012829]
[1769885973882,0.13963568,78072.0,78056.0,0.012829]
[1769885974076,0.13963568,78071.0,78056.0,0.012829]
[1769885974283,0.13963568,78070.0,78056.0,0.012829]
[1769885974477,0.13963568,78069.0,78056.0,0.012829]
[1769885974681,0.13963568,78068.0,78056.0,0.012829]
[1769885974979,0.13963568,78067.0,78056.0,0.012829]
[1769885975177,6.8e-07,78066.0,78056.0,0.012829]
[1769885975387,0.12810166,78067.0,78056.0,0.012829]
[1769885975587,0.29155409,78079.0,78056.0,0.012829]
[1769885975783,9.4e-07,78066.0,78056.0,0.012829]
[1769885976189,0.38391409,78079.0,78064.0,0.012828]
[1769885976392,0.37219193,78101.0,78047.0,0.29313473]
[1769885976393,0.29155409,78090.0,78047.0,0.29313473]
[1769885976584,0.12810494,78077.0,78064.0,0.012828]
[1769885976892,0.38391409,78101.0,78081.0,0.012825]
[1769885977079,0.33792,78099.0,78075.0,0.012826]
[1769885977278,0.12808771,78088.0,78075.0,0.012826]
[1769885977483,0.38391409,78101.0,78080.0,0.012825]
[1769885977790,0.09236,78114.0,78096.0,0.012823]
[1769885978190,0.09236,78130.0,78101.0,0.012822]
[1769885978488,0.12807131,78113.0,78101.0,0.012822]
[1769885978691,0.09236,78130.0,78089.0,0.012824]
[1769885978692,0.63752359,78112.0,78089.0,0.012824]
[1769885978893,0.29960359,78110.0,78083.0,0.012825]
[1769885979194,0.29960359,78110.0,78057.0,0.012829]
[1769885979195,0.29960359,78124.0,78092.0,0.012823]
[1769885979387,0.12801556,78109.0,78097.0,0.012823]
[1769885979582,0.25113097,78133.0,78102.0,0.012822]
[1769885979787,0.25113097,78134.0,78102.0,0.012822]
[1769885980086,0.12802785,78123.0,78102.0,0.012822]
[1769885980289,0.01570968,78134.0,78109.0,0.012821]
[1769885980489,0.29960359,78133.0,78097.0,0.012823]
[1769885980883,0.2799078,78130.0,78076.0,0.29545406]
[1769885981088,0.2799078,78119.0,78080.0,0.012825]
[1769885981291,0.2799078,78117.0,78080.0,0.012825]
[1769885981686,0.2799078,78117.0,78065.0,0.28155391]
[1769885981887,0.2799078,78117.0,78080.0,0.012825]
[1769885982190,0.2799078,78115.0,78080.0,0.012825]
[1769885982690,0.2799078,78115.0,78071.0,0.28155391]
[1769885982889,0.2799078,78113.0,78071.0,0.28155391]
[1769885983287,0.2799078,78126.0,78086.0,0.28155391]
[1769885983488,0.92372,78166.0,78071.0,0.064136]
[1769885983489,7e-08,78112.0,78097.0,0.28155391]
[1769885983688,0.09236,78129.0,78108.0,0.012821]
[1769885983891,0.04036,78129.0,78108.0,0.012821]
[1769885984090,0.12803113,78128.0,78108.0,0.012821]
[1769885985393,0.2799078,78127.0,78091.0,0.09236]
[1769885985992,0.12801146,78126.0,78091.0,0.09236]
[1769885986798,0.2799078,78125.0,78091.0,0.09236]
[1769885986988,0.2799078,78125.0,78102.0,0.012822]
[1769885987188,0.13519134,78124.0,78102.0,0.012822]
[1769885987389,0.13519134,78123.0,78102.0,0.012822]
[1769885987589,0.13519134,78123.0,78060.0,0.26707576]
[1769885987590,0.2799078,78121.0,78074.0,0.28155391]
[1769885987891,0.2799078,78119.0,78092.0,0.012823]
[1769885988085,0.13519134,78118.0,78092.0,0.012823]
[1769885988285,0.41509914,78118.0,78092.0,0.012823]
[1769885988485,0.263211,78117.0,78092.0,0.012823]
[1769885988796,0.13519134,78116.0,78092.0,0.012823]
[1769885989190,0.13519134,78116.0,78074.0,0.28155391]
[1769885989392,0.26322411,78115.0,78097.0,0.012823]
[1769885989594,0.13519134,78114.0,78097.0,0.012823]
[1769885989791,0.13519134,78114.0,78092.0,0.012823]
[1769885990096,0.26324051,78113.0,78092.0,0.012823]
[1769885990296,0.13519134,78112.0,78092.0,0.012823]
[1769885990796,0.2799078,78117.0,78092.0,0.012823]
[1769885990797,0.26324051,78111.0,78092.0,0.012823]
[1769885990998,0.07119134,78110.0,78092.0,0.012823]
[1769885991391,0.12803769,78109.0,78092.0,0.012823]
[1769885991697,0.2799078,78127.0,78097.0,0.012823]
[1769885991888,0.12803933,78108.0,78097.0,0.012823]
[1769885992092,0.2799078,78116.0,78070.0,0.28155391]
[1769885992392,0.6177078,78124.0,78077.0,0.28155391]
[1769885992597,0.2799078,78123.0,78077.0,0.28155391]
[1769885992797,0.25080005,78120.0,78083.0,0.012825]
[1769885992994,0.2927278,78113.0,78054.0,0.06415]
[1769885993202,0.2799078,78099.0,78055.0,0.012829]
[1769885993493,0.2799078,78095.0,78055.0,0.012829]
[1769885993703,0.2799078,78095.0,78060.0,0.012829]
[1769885993995,0.2799078,78093.0,78060.0,0.012829]
[1769885994197,0.3722278,78092.0,78060.0,0.012829]
[1769885994500,0.2799078,78091.0,78060.0,0.012829]
[1769885994700,0.40797664,78091.0,78060.0,0.012829]
[1769885995496,0.12806884,78091.0,78060.0,0.012829]
[1769885995699,0.12806884,78091.0,78068.0,0.012827]
[1769885995897,0.2799078,78090.0,78062.0,0.012828]
[1769885996097,0.40798321,78090.0,78062.0,0.012828]
[1769885996299,0.2799078,78089.0,78062.0,0.012828]
[1769885997001,0.12807705,78088.0,78062.0,0.012828]
[1769885997503,0.2799078,78088.0,78062.0,0.012828]
[1769885997998,0.2799078,78088.0,78054.0,0.28155391]
[1769885997999,0.25116013,78087.0,78067.0,0.01293859]
[1769885998199,0.3134554,78097.0,78072.0,0.012827]
[1769885998404,0.2799078,78099.0,78072.0,0.012827]
[1769885998405,0.12807787,78087.0,78072.0,0.012827]
[1769885998605,0.2799078,78099.0,78072.0,0.012827]
[1769885998998,0.12806638,78086.0,78072.0,0.012827]
[1769885999199,0.2799078,78099.0,78072.0,0.012827]
[1769885999503,0.12806638,78098.0,78072.0,0.012827]
[1769885999700,0.12806638,78098.0,78067.0,0.2816645]
[1769885999902,0.2799078,78109.0,78089.0,0.012824]
[1769886000103,7.4e-07,78097.0,78076.0,0.28155391]
[1769886000302,0.2799078,78119.0,78083.0,0.012825]
[1769886000303,0.09236,78111.0,78083.0,0.012825]
[1769886000499,0.37219193,78122.0,78093.0,0.012823]
[1769886000699,0.37219193,78122.0,78082.0,0.28155391]
[1769886000700,0.2799078,78121.0,78082.0,0.28155391]
[1769886000898,0.2799078,78121.0,78093.0,0.012823]
[1769886000899,8.9e-07,78110.0,78093.0,0.012823]
[1769886001099,0.2799078,78121.0,78093.0,0.012823]
[1769886001298,0.12804589,78120.0,78093.0,0.012823]
[1769886001906,0.2799078,78119.0,78087.0,0.012824]
[1769886002106,0.2799078,78119.0,78092.0,0.012823]
[1769886002596,0.40793811,78118.0,78092.0,0.01225399]
[1769886002799,0.2799078,78117.0,78092.0,0.01225399]
[1769886002994,0.13264526,78116.0,78092.0,0.01225399]
[1769886003198,0.13264526,78115.0,78092.0,0.01225399]
[1769886003406,0.13264526,78114.0,78092.0,0.01225399]
[1769886003600,0.12803195,78116.0,78092.0,0.01225399]
[1769886003601,0.13264526,78113.0,78092.0,0.01225399]
[1769886003906,0.13264526,78112.0,78092.0,0.01225399]
[1769886004307,0.26068131,78111.0,78092.0,0.01225399]
[1769886004610,0.2799078,78117.0,78098.0,0.012822]
[1769886005109,0.2799078,78109.0,78093.0,0.012823]
[1769886005404,0.2349078,78109.0,78087.0,0.012824]
[1769886005610,0.2349078,78109.0,78070.0,0.012827]
[1769886005908,0.12804425,78108.0,78067.0,0.00011059]
[1769886006105,0.12804425,78108.0,78071.0,0.012827]
[1769886006400,0.43012,78107.0,78077.0,0.012826]
[1769886006808,0.43012,78107.0,78082.0,0.012825]
[1769886007002,0.37219193,78127.0,78091.0,0.012824]
[1769886007308,0.37219193,78127.0,78097.0,0.012823]
[1769886007309,0.12805409,78118.0,78097.0,0.012823]
[1769886007604,0.27814535,78124.0,78097.0,0.012823]
[1769886008000,6.7e-07,78125.0,78094.0,0.27508923]
[1769886008306,0.27814535,78148.0,78118.0,0.012819]
[1769886008606,0.12802867,78133.0,78112.0,0.01282]
[1769886008805,0.12802867,78133.0,78117.0,0.012819]
[1769886009010,0.27814535,78148.0,78110.0,0.01282]
[1769886009204,0.12798689,78147.0,78115.0,0.01282]
[1769886009398,0.12798689,78147.0,78097.0,0.001]
[1769886009399,0.27814535,78146.0,78097.0,0.001]
[1769886009601,0.27814535,78139.0,78104.0,0.012821]
[1769886009898,0.27814535,78139.0,78098.0,0.012822]
[1769886010104,0.27814535,78135.0,78097.0,0.001]
[1769886010505,0.27814535,78135.0,78092.0,0.012823]
[1769886010809,0.27814535,78133.0,78092.0,0.012823]
[1769886011109,0.46580573,78134.0,78092.0,0.27508923]
[1769886011110,0.27814535,78131.0,78092.0,0.27508923]
[1769886011312,0.27814535,78143.0,78111.0,0.01282]
[1769886011809,0.01739789,78148.0,78111.0,0.01282]
[1769886012005,0.12799672,78142.0,78111.0,0.01282]
[1769886012207,0.27814535,78152.0,78111.0,0.01282]
[1769886012401,0.40614207,78152.0,78111.0,0.01282]
[1769886012606,0.27814535,78151.0,78111.0,0.01282]
[1769886012908,0.29525792,78151.0,78111.0,0.01282]
[1769886013109,0.12798935,78150.0,78111.0,0.01282]
[1769886013812,0.12798935,78150.0,78116.0,0.012819]
[1769886014411,0.12798935,78150.0,78110.0,0.01282]
[1769886014614,0.61590535,78149.0,78110.0,0.01282]
[1769886014910,0.61590535,78149.0,78100.0,0.27508923]
[1769886014911,0.29095935,78148.0,78108.0,0.012821]
[1769886015213,0.41895115,78148.0,78108.0,0.012821]
[1769886015407,0.27814535,78147.0,78108.0,0.012821]
[1769886016108,0.27814535,78145.0,78118.0,0.012819]
[1769886016305,0.27814535,78145.0,78100.0,0.27508923]
[1769886016306,0.27814535,78145.0,78112.0,0.01282]
[1769886016705,0.26186887,78144.0,78112.0,0.01282]
[1769886016901,0.26186887,78144.0,78117.0,0.012819]
[1769886016902,0.13387297,78143.0,78117.0,0.012819]
[1769886017214,0.13387297,78143.0,78116.0,0.012819]
[1769886017400,0.13387297,78142.0,78116.0,0.012819]
[1769886017601,0.13387297,78141.0,78113.0,0.01282]
[1769886017807,0.13387297,78140.0,78113.0,0.01282]
[1769886018006,0.13387297,78139.0,78118.0,0.012819]
[1769886018203,0.13387297,78138.0,78118.0,0.012819]
[1769886018407,0.27814535,78146.0,78118.0,0.012819]
[1769886018806,0.12799344,78145.0,78118.0,0.012819]
[1769886019715,0.09999344,78145.0,78118.0,0.012819]
[1769886020012,0.27814535,78144.0,78118.0,0.012819]
[1769886020211,0.27814535,78144.0,78112.0,0.01282]
[1769886020410,0.25175521,78137.0,78094.0,0.012823]
[1769886020604,0.52990056,78136.0,78094.0,0.012823]
[1769886020917,0.27814535,78114.0,78074.0,0.12798935]
[1769886021215,0.52990056,78109.0,78064.0,0.105148]
[1769886021409,0.25175521,78098.0,78064.0,0.09232]
[1769886021615,0.27814535,78088.0,78064.0,0.07435793]
[1769886021822,0.27814535,78086.0,78042.0,0.012832]
[1769886022118,0.27814535,78086.0,78036.0,0.09232]
[1769886022119,0.41904001,78085.0,78036.0,0.09232]
[1769886022306,0.27814535,78082.0,78038.0,0.012832]
[1769886022508,0.27814535,78082.0,78044.0,0.012831]
[1769886022706,0.27814535,78080.0,78044.0,0.012831]
[1769886022908,0.27814535,78078.0,78044.0,0.012831]
[1769886023218,0.00014333,78077.0,78041.0,0.27508923]
[1769886023415,0.00014333,78077.0,78036.0,0.09232]
[1769886023416,0.27828251,78076.0,78036.0,0.09232]
[1769886023620,0.27828251,78076.0,78042.0,0.001]
[1769886023804,0.27828251,78076.0,78043.0,0.012831]
[1769886024002,0.01729413,78084.0,78042.0,0.001]
[1769886024003,0.27814535,78074.0,78042.0,0.001]
[1769886024207,0.27814535,78072.0,78042.0,0.001]
[1769886024403,0.27814535,78070.0,78041.0,0.001]
[1769886024618,0.0001019,78069.0,78041.0,0.001]
[1769886024815,0.27814535,78068.0,78041.0,0.001]
[1769886025115,0.27814535,78056.0,78016.0,0.09232]
[1769886025305,0.33772,78055.0,78018.0,0.012836]
[1769886025613,5.5e-07,78054.0,78042.0,0.012832]
[1769886025813,0.27814535,78074.0,78042.0,0.012832]
[1769886026014,0.33776,78081.0,78042.0,0.28792123]
[1769886026217,0.012823,78097.0,78039.0,0.09232]
[1769886026218,0.09232,78089.0,78054.0,0.01283]
[1769886026603,0.12814516,78080.0,78054.0,0.01283]
[1769886026810,0.33776,78103.0,78069.0,0.012827]